bitfinex/quotes_SOLUSD_20240612
["timestamp","ask_amount","ask_price","bid_price","bid_amount"]
[1718157636746,5.0318,147.07,146.98,9.193787]
[1718157637059,2.5156,147.08,147.04,2.5163]
[1718157637659,2.5156,147.08,147.05,0.51]
[1718157638071,2.5159,147.06,147.05,0.51]
[1718157638239,2.5159,147.06,147.04,0.17]
[1718157638447,7.5474,147.07,146.99,2.517]
[1718157638648,2.5167,147.02,146.98,2.749487]
[1718157638949,2.5167,147.02,146.98,5.266787]
[1718157639144,2.5165,147.03,146.98,5.266787]
[1718157639351,2.5163,147.04,147.0,2.517]
[1718157639654,2.5163,147.04,146.99,2.5171]
[1718157639865,2.5165,147.03,146.99,2.5171]
[1718157640046,2.5164,147.04,147.0,3.1969]
[1718157640556,2.5164,147.04,147.0,0.68]
[1718157641067,2.5165,147.03,147.0,0.68]
[1718157641847,67.3224,146.99,146.98,8.7e-05]
[1718157642164,2.5183,146.93,146.87,2.519]
[1718157642366,2.5177,146.96,146.9,2.5185]
[1718157642664,6.1312,146.97,146.86,5.41785772]
[1718157642836,2.5183,146.93,146.88,2.519]
[1718157643261,13.6839,146.97,146.83,17.6389]
[1718157643262,6.1312,146.97,146.85,5.50331117]
[1718157643480,6.1312,146.97,146.9,2.5186]
[1718157643481,2.5177,146.96,146.9,2.5186]
[1718157643768,2.5177,146.96,146.86,5.0386]
[1718157643769,11.1665,146.97,146.83,17.6391]
[1718157644066,2.5179,146.95,146.89,2.5188]
[1718157644460,2.518,146.94,146.88,2.519]
[1718157644638,2.5182,146.93,146.87,2.5191]
[1718157644844,5.0359,146.95,146.83,15.58988836]
[1718157645060,2.5184,146.92,146.83,5.0396]
[1718157645364,5.0359,146.95,146.82,8.4265834]
[1718157645365,5.036,146.94,146.85,2.5194]
[1718157645541,2.5188,146.9,146.85,2.5194]
[1718157646155,2.5188,146.9,146.84,2.5197]
[1718157646357,2.5188,146.89,146.84,2.5197]
[1718157646660,2.5187,146.9,146.84,2.5197]
[1718157647270,2.5186,146.91,146.85,2.5195]
[1718157647468,2.5186,146.91,146.87,0.17]
[1718157647682,2.5186,146.91,146.87,0.51]
[1718157647878,8.9931,146.91,146.87,0.51]
[1718157648075,2.5188,146.9,146.87,0.51]
[1718157648287,2.5189,146.89,146.87,0.51]
[1718157648587,2.5187,146.9,146.87,0.51]
[1718157649086,6.4745,146.96,146.87,0.51]
[1718157649255,11.51,146.96,146.89,0.17]
[1718157649459,2.5186,146.91,146.87,0.51]
[1718157649858,2.5186,146.91,146.88,0.17]
[1718157650176,2.5185,146.91,146.89,0.17]
[1718157650357,2.5187,146.9,146.88,0.17]
[1718157650561,12.5902,146.94,146.88,0.17]
[1718157650785,2.5189,146.89,146.87,0.51]
[1718157651092,2.519,146.88,146.87,0.17]
[1718157651585,2.5189,146.89,146.87,0.17]
[1718157651789,15.8765,146.91,146.82,0.8665834]
[1718157651983,2.5197,146.85,146.82,0.8665834]
[1718157652283,6.6313,146.85,146.82,0.8665834]
[1718157652459,2.5197,146.84,146.82,0.8665834]
[1718157652661,6.6313,146.85,146.82,0.8665834]
[1718157652662,9.1509,146.85,146.82,0.8665834]
[1718157653163,6.3913,146.89,146.83,0.17]
[1718157653361,6.3913,146.89,146.83,0.68]
[1718157653362,2.5194,146.86,146.83,0.68]
[1718157654477,2.5195,146.85,146.83,0.68]
[1718157654668,2.5197,146.84,146.82,0.8665834]
[1718157655866,2.5196,146.85,146.82,0.8665834]
[1718157656065,5.0386,146.87,146.82,0.8665834]
[1718157656384,2.5196,146.85,146.82,0.8665834]
[1718157656577,2.5196,146.85,146.82,0.7561476]
[1718157656786,8.8568,146.86,146.82,0.7561476]
[1718157657469,8.8568,146.86,146.83,0.34]
[1718157658286,2.5196,146.85,146.83,0.34]
[1718157658784,8.8568,146.86,146.83,0.34]
[1718157659174,2.5196,146.85,146.83,0.34]
[1718157659989,2.5197,146.84,146.82,0.7561476]
[1718157660292,6.3374,146.86,146.82,0.7561476]
[1718157660591,2.5196,146.85,146.82,0.7561476]
[1718157661292,21.9312,146.91,146.83,0.17]
[1718157661495,12.5937,146.9,146.83,0.68]
[1718157661676,2.5193,146.87,146.83,0.68]
[1718157662172,21.9312,146.91,146.85,0.17]
[1718157662375,21.9312,146.91,146.82,0.7561476]
[1718157662376,24.6847617,146.91,146.82,0.7561476]
[1718157662577,2.5195,146.86,146.82,0.7561476]
[1718157662776,24.6847617,146.91,146.82,0.7561476]
[1718157662996,2.5187,146.9,146.85,2.5194]
[1718157663204,21.9312,146.91,146.82,0.7561476]
[1718157663372,2.5184,146.92,146.87,2.5191]
[1718157663697,2.5182,146.93,146.88,3.0289]
[1718157664001,2.518,146.94,146.9,0.17]
[1718157664212,2.518,146.94,146.9,0.51]
[1718157665299,2.5184,146.92,146.89,0.17]
[1718157665467,31.2484,146.97,146.91,0.17]
[1718157665671,2.5181,146.94,146.9,0.51]
[1718157665899,5.0355,146.96,146.91,0.17]
[1718157666083,5.0355,146.96,146.84,17.6376]
[1718157666084,16.1427,146.97,146.76,127.18]
[1718157666271,10.0722,146.94,146.78,100.0]
[1718157666476,10.0722,146.94,146.84,2.5196]
[1718157666477,5.0365,146.93,146.84,2.5196]
[1718157666671,5.0367,146.92,146.84,2.5196]
[1718157666888,2.5187,146.9,146.84,2.5196]
[1718157667086,2.5187,146.9,146.85,2.5195]
[1718157667482,2.5187,146.9,146.86,0.17]
[1718157667883,2.5189,146.89,146.85,0.17]
[1718157668107,2.5189,146.89,146.86,0.17]
[1718157668296,2.5189,146.89,146.86,0.34]
[1718157668480,2.5189,146.89,146.87,0.17]
[1718157668682,2.5187,146.9,146.87,0.34]
[1718157668882,28.0534,146.96,146.88,0.17]
[1718157669190,2.5182,146.93,146.88,2.859]
[1718157669391,2.5182,146.93,146.9,0.17]
[1718157669895,2.5181,146.94,146.9,0.17]
[1718157670106,2.5182,146.93,146.9,0.34]
[1718157670309,2.5185,146.91,146.9,0.17]
[1718157670800,3.1992352,146.91,146.9,0.17]
[1718157671100,0.6807352,146.91,146.9,0.17]
[1718157671302,0.6807352,146.91,146.9,0.34]
[1718157671480,0.6807352,146.91,146.9,0.68]
[1718157674385,0.6807352,146.91,146.9,6.7574]
[1718157674592,0.6807352,146.91,146.9,9.2761]
[1718157674901,0.6807352,146.91,146.9,47.5701]
[1718157675609,2.517,147.0,146.96,0.17]
[1718157675818,2.5171,146.99,146.98,0.34]
[1718157675988,10.0678,147.01,146.96,0.17]
[1718157676183,5.0352,146.97,146.91,0.17]
[1718157676392,2.5182,146.93,146.91,0.51]
[1718157676604,36.9988,146.97,146.86,6.1051]
[1718157676905,36.9988,146.97,146.85,16.3738]
[1718157676906,2.5189,146.89,146.85,16.3738]
[1718157677283,2.5189,146.89,146.85,2.5195]
[1718157677506,2.5192,146.87,146.84,0.7561476]
[1718157678027,2.5184,146.92,146.84,0.7561476]
[1718157678312,2.5189,146.89,146.84,3.2757476]
[1718157678511,5.037,146.92,146.84,0.7561476]
[1718157678818,2.519,146.89,146.84,0.7561476]
[1718157679001,2.5191,146.88,146.84,0.7561476]
[1718157679432,2.5188,146.9,146.84,3.2758476]
[1718157679716,2.5188,146.9,146.85,2.5195]
[1718157680487,2.5186,146.91,146.86,2.8593]
[1718157680800,2.5189,146.89,146.87,0.17]
[1718157680994,30.5737,146.92,146.84,0.7561476]
[1718157681319,2.5195,146.85,146.84,0.7561476]
[1718157682783,2.5192,146.87,146.84,0.7561476]
[1718157683490,16.6773,146.85,146.84,0.7561476]
[1718157683830,16.6773,146.85,146.75,15.2352]
[1718157683831,2.5205,146.8,146.75,17.7564]
[1718157684021,2.5206,146.79,146.75,15.2352]
[1718157684325,2.5206,146.79,146.75,17.7564]
[1718157684490,2.5202,146.81,146.76,2.5211]
[1718157684694,2.5199,146.84,146.76,5.0421]
[1718157684902,2.5196,146.85,146.8,2.5203]
[1718157685110,2.5198,146.84,146.79,2.5205]
[1718157685314,5.0388,146.86,146.8,0.51]
[1718157685517,5.0388,146.86,146.78,0.17]
[1718157685518,5.04,146.83,146.75,15.2352]
[1718157685704,2.5201,146.82,146.77,2.5209]
[1718157685905,5.0388,146.86,146.76,5.042]
[1718157686119,2.5198,146.84,146.79,2.5205]
[1718157686295,2.5196,146.85,146.8,2.5204]
[1718157686492,10.0776,146.86,146.78,6.4192]
[1718157686696,5.0391,146.85,146.79,0.17]
[1718157686916,5.0391,146.85,146.79,0.34]
[1718157687142,2.5201,146.82,146.8,0.34]
[1718157687432,2.5199,146.83,146.81,0.34]
[1718157687805,2.5199,146.83,146.81,0.17]
[1718157688422,2.52,146.82,146.81,0.17]
[1718157688802,20.44,146.84,146.79,0.17]
[1718157689006,2.5204,146.8,146.79,0.17]
[1718157689225,5.0403,146.82,146.75,21.394]
[1718157689413,5.0407,146.81,146.72,2.5216]
[1718157689618,2.5208,146.78,146.73,2.5216]
[1718157690317,5.0407,146.81,146.71,2.5218]
[1718157690318,20.44,146.81,146.71,2.5218]
[1718157690521,2.5208,146.78,146.69,5.8723763]
[1718157690719,7.5614,146.8,146.69,5.8723763]
[1718157690720,2.521,146.77,146.72,2.5217]
[1718157691226,22.1313,146.83,146.73,6.0328]
[1718157691430,29.6914,146.83,146.73,6.0328]
[1718157691637,2.5208,146.78,146.73,2.5216]
[1718157691805,2.5209,146.77,146.73,2.5216]
[1718157692132,2.5209,146.77,146.74,0.51]
[1718157692325,2.5209,146.77,146.75,0.34]
[1718157693203,2.5209,146.77,146.74,0.34]
[1718157693407,5.0408,146.8,146.75,2.5211]
[1718157693408,2.5204,146.8,146.75,2.5211]
[1718157693623,2.5206,146.79,146.76,0.68]
[1718157693827,2.5206,146.79,146.76,0.51]
[1718157694030,2.5207,146.78,146.76,0.51]
[1718157694928,2.5206,146.79,146.76,0.51]
[1718157695137,12.5982,146.85,146.77,0.34]
[1718157695335,57.6982,146.86,146.79,0.17]
[1718157695336,2.52,146.83,146.79,0.17]
[1718157695515,2.5201,146.82,146.79,0.34]
[1718157695713,2.5202,146.81,146.79,0.34]
[1718157696042,15.117,146.86,146.79,0.34]
[1718157696239,2.5198,146.84,146.81,0.17]
[1718157696627,2.5199,146.83,146.81,0.17]
[1718157696830,2.52,146.82,146.81,0.17]
[1718157697351,2.5199,146.83,146.81,0.34]
[1718157697715,10.0783,146.85,146.8,0.34]
[1718157697914,2.5202,146.81,146.76,2.521]
[1718157698111,2.5201,146.82,146.78,0.17]
[1718157698332,2.5201,146.82,146.78,0.34]
[1718157698544,2.5201,146.82,146.79,0.34]
[1718157698839,5.039,146.86,146.8,0.17]
[1718157699034,5.039,146.86,146.8,0.34]
[1718157699210,2.5199,146.83,146.8,0.34]
[1718157699414,2.5199,146.83,146.81,0.34]
[1718157699614,2.5199,146.83,146.82,0.17]
[1718157700233,2.5198,146.84,146.82,0.17]
[1718157700740,2.5199,146.83,146.82,0.17]
[1718157701339,2.5197,146.84,146.82,0.17]
[1718157701525,2.5197,146.84,146.82,0.34]
[1718157701730,2.5196,146.85,146.82,0.34]
[1718157702046,2.5194,146.86,146.84,0.17]
[1718157702560,2.5192,146.87,146.84,0.34]
[1718157702720,2.5192,146.87,146.85,0.34]
[1718157703341,2.5192,146.87,146.86,0.17]
[1718157703751,2.5191,146.88,146.86,0.34]
[1718157704214,6.2473,146.92,146.86,0.34]
[1718157704215,5.0369,146.92,146.86,0.34]
[1718157704420,2.519,146.88,146.87,0.34]
[1718157704621,2.5189,146.89,146.88,0.34]
[1718157705124,2.5189,146.89,146.88,0.68]
[1718157705523,5.0374,146.9,146.84,0.17]
[1718157705724,5.0374,146.9,146.84,0.68]
[1718157705942,2.5189,146.89,146.84,3.1997]
[1718157706160,2.5188,146.9,146.86,0.17]
[1718157706451,2.5189,146.89,146.86,0.68]
[1718157706674,2.5186,146.91,146.86,3.1993]
[1718157706821,35.5483,146.94,146.86,3.1993]
[1718157706822,2.5187,146.9,146.86,3.1993]
[1718157707027,2.5186,146.91,146.88,0.17]
[1718157707646,2.5186,146.91,146.87,0.17]
[1718157707842,2.5186,146.91,146.87,0.34]
[1718157708038,2.5187,146.9,146.89,0.17]
[1718157709067,2.5188,146.89,146.88,0.51]
[1718157709278,2.5188,146.89,146.88,0.68]
[1718157709766,2.5192,146.87,146.83,9.1326]
[1718157709971,2.5196,146.85,146.81,17.71]
[1718157710174,2.5197,146.84,146.81,15.1898]
[1718157710379,5.0392,146.85,146.79,6.5634]
[1718157710554,2.5202,146.82,146.78,16.176]
[1718157710877,0.68129173,146.79,146.78,16.176]
[1718157713458,0.68129173,146.79,146.78,25.2257]
[1718157713675,0.68129173,146.79,146.78,25.3957]
[1718157714042,0.68129173,146.79,146.78,25.5657]
[1718157714443,0.68129173,146.79,146.78,48.2526]
[1718157715344,2.519,146.88,146.8,0.17]
[1718157715571,2.5192,146.87,146.84,0.17]
[1718157715863,2.5195,146.85,146.84,0.17]
[1718157717453,2.5197,146.84,146.83,0.51]
[1718157717673,12.5965,146.87,146.79,0.17]
[1718157717674,7.5584,146.86,146.79,0.17]
[1718157717863,2.52,146.83,146.79,0.68]
[1718157718042,2.5198,146.84,146.79,3.2005]
[1718157718248,2.5198,146.84,146.79,0.68]
[1718157718540,44.4418,146.88,146.81,0.17]
[1718157718541,2.5196,146.85,146.81,0.17]
[1718157720141,2.5196,146.85,146.81,2.6902]
[1718157720346,5.0393,146.85,146.78,18.6966]
[1718157720651,10.0777,146.86,146.79,2.5205]
[1718157720853,2.5198,146.84,146.78,16.176]
[1718157721057,6.3675,146.88,146.78,16.176]
[1718157721058,6.3675,146.88,146.79,12.6027]
[1718157721257,2.5192,146.87,146.82,2.5199]
[1718157721653,2.5192,146.87,146.83,0.68]
[1718157722772,2.5191,146.88,146.83,9.3752]
[1718157722973,2.5192,146.87,146.83,6.8554]
[1718157723359,2.5191,146.88,146.83,9.3753]
[1718157723668,12.5947,146.89,146.83,6.8554]
[1718157723872,2.5197,146.85,146.83,0.68]
[1718157724254,2.5194,146.86,146.83,0.68]
[1718157724450,2.5193,146.87,146.83,0.68]
[1718157724862,5.0376,146.9,146.83,0.68]
[1718157724863,2.5194,146.86,146.83,0.68]
[1718157725261,2.5195,146.85,146.83,0.68]
[1718157726122,20.44,146.86,146.78,16.176]
[1718157726388,2.52,146.83,146.78,2.5206]
[1718157726606,2.52,146.83,146.78,8.9709]
[1718157727291,17.6371,146.85,146.77,2.5209]
[1718157727509,2.5202,146.81,146.76,2.521]
[1718157727806,2.5202,146.81,146.76,9.0759]
[1718157728003,2.5209,146.77,146.72,14.1161]
[1718157728167,2.5211,146.76,146.72,11.5944]
[1718157729184,2.5214,146.74,146.72,5.0395]
[1718157729381,2.5216,146.73,146.72,5.0395]
[1718157729582,2.5221,146.7,146.69,0.8279763]
[1718157730276,2.5215,146.74,146.69,0.8279763]
[1718157730478,2.5214,146.74,146.69,0.8279763]
[1718157731017,2.5216,146.73,146.69,0.8279763]
[1718157731211,2.5216,146.73,146.7,0.34]
[1718157731506,2.5216,146.73,146.69,0.8279763]
[1718157731701,2.5218,146.72,146.69,0.8279763]
[1718157732209,13.7516,146.77,146.69,0.8279763]
[1718157732210,2.5214,146.74,146.69,0.8279763]
[1718157732510,25.4822,146.76,146.69,0.8279763]
[1718157732710,2.5219,146.72,146.7,0.51]
[1718157732884,2.5221,146.7,146.69,0.8279763]
[1718157733622,7.5664,146.7,146.69,0.8279763]
[1718157733794,2.5221,146.7,146.69,0.8279763]
[1718157735290,59.0712,146.74,146.69,0.8279763]
[1718157735609,2.5219,146.71,146.69,0.8279763]
[1718157735785,2.5221,146.7,146.69,0.8279763]
[1718157736688,2.5218,146.72,146.69,0.8279763]
[1718157737014,33.18723638,146.78,146.7,0.34]
[1718157737215,2.5214,146.75,146.7,0.68]
[1718157737420,2.5214,146.75,146.7,3.202]
[1718157737638,27.7488,146.78,146.7,0.68]
[1718157737820,12.6043,146.78,146.7,3.202]
[1718157737997,12.6043,146.78,146.7,6.9466]
[1718157737998,5.0419,146.77,146.7,6.9466]
[1718157738197,2.5216,146.74,146.7,6.9466]
[1718157739106,2.5216,146.73,146.7,6.9466]
[1718157739305,2.5215,146.74,146.7,6.9466]
[1718157739702,2.5216,146.73,146.7,6.9466]
[1718157739910,2.5216,146.73,146.7,0.68]
[1718157740098,30.5246,146.76,146.7,0.34]
[1718157740304,2.5218,146.72,146.7,0.34]
[1718157740929,5.0425,146.75,146.7,0.34]
[1718157741101,384.8,146.92,146.7,0.34]
[1718157741298,27.18,146.77,146.69,0.8279763]
[1718157741501,15.1328,146.7,146.69,0.8279763]
[1718157741728,2.5221,146.7,146.69,0.8279763]
[1718157742031,2.5218,146.72,146.69,0.8279763]
[1718157742221,2.5211,146.76,146.71,2.5219]
[1718157742426,27.18,146.77,146.69,0.8279763]
[1718157742733,2.5214,146.74,146.69,9.9681763]
[1718157742941,2.5214,146.74,146.71,0.17]
[1718157743234,54.302,146.78,146.71,0.17]
[1718157743410,6.552,146.79,146.73,0.17]
[1718157743411,2.521,146.77,146.73,0.17]
[1718157743619,2.5208,146.78,146.74,6.3999]
[1718157743831,2.5206,146.79,146.75,0.68]
[1718157744328,5.0406,146.81,146.75,0.68]
[1718157744329,2.5209,146.77,146.75,0.68]
[1718157744505,2.5208,146.78,146.75,0.68]
[1718157745018,2.5209,146.77,146.75,0.68]
[1718157745419,2.5208,146.78,146.75,0.68]
[1718157747644,5.0403,146.82,146.75,0.68]
[1718157747803,2.5199,146.83,146.79,0.17]
[1718157748136,34.3318,146.87,146.79,0.17]
[1718157748137,5.0387,146.87,146.81,0.17]
[1718157748307,5.0387,146.87,146.81,0.68]
[1718157748507,2.5197,146.84,146.81,0.68]
[1718157748908,5.0397,146.84,146.77,0.17]
[1718157749113,2.5206,146.79,146.77,0.68]
[1718157749335,7.5598,146.83,146.79,6.8332]
[1718157749336,2.5199,146.83,146.79,6.8332]
[1718157749633,2.52,146.82,146.81,0.17]
[1718157749844,2.5199,146.83,146.81,0.17]
[1718157750932,2.5198,146.84,146.81,0.17]
[1718157751234,2.5197,146.85,146.81,0.17]
[1718157751431,2.5197,146.85,146.81,6.2614]
[1718157751730,2.5197,146.85,146.82,0.51]
[1718157752033,12.5962,146.87,146.82,0.51]
[1718157752534,5.0388,146.86,146.82,0.51]
[1718157752743,2.5197,146.85,146.82,0.51]
[1718157752910,2.5197,146.84,146.82,0.51]
[1718157753106,2.5195,146.85,146.83,0.17]
[1718157753304,4.07576072,146.89,146.83,0.17]
[1718157753606,2.5195,146.86,146.83,0.17]
[1718157753806,2.5193,146.87,146.83,6.4557]
[1718157754018,2.5191,146.88,146.85,0.17]
[1718157754409,2.5192,146.87,146.85,0.17]
[1718157755140,2.5194,146.86,146.85,0.17]
[1718157755351,4.07576072,146.89,146.79,6.3276]
[1718157755352,24.51576072,146.89,146.79,6.3276]
[1718157755635,7.5589,146.85,146.79,6.3276]
[1718157755843,2.5199,146.84,146.79,6.3276]
[1718157756213,2.5199,146.84,146.79,8.8481]
[1718157756838,7.558,146.87,146.8,0.51]
[1718157756839,2.5202,146.81,146.8,0.51]
[1718157757011,10.0762,146.88,146.8,6.5897]
[1718157757210,2.5197,146.84,146.8,6.5897]
[1718157757414,2.5197,146.84,146.81,0.17]
[1718157759354,20.44,146.86,146.78,16.5449]
[1718157759653,2.5204,146.81,146.78,16.5449]
[1718157759860,2.5203,146.81,146.78,16.5449]
[1718157760062,12.5989,146.84,146.76,6.4862]
[1718157760063,2.5204,146.8,146.76,6.4862]
[1718157760267,2.5204,146.8,146.74,16.3112]
[1718157760268,7.5615,146.8,146.74,16.3112]
[1718157760478,2.5211,146.77,146.74,16.3112]
[1718157760635,2.5211,146.76,146.74,16.3112]
[1718157760835,2.5211,146.76,146.72,6.4862]
[1718157761370,2.521,146.77,146.72,9.008]
[1718157762535,5.0412,146.79,146.71,15.0647]
[1718157762536,2.5213,146.75,146.71,15.0647]
[1718157764076,2.5213,146.75,146.7,2.5221]
[1718157764437,2.5213,146.75,146.71,0.17]
[1718157765166,2.5213,146.75,146.72,0.17]
[1718157765360,20.44,146.81,146.72,0.51]
[1718157765659,30.5212,146.81,146.73,0.17]
[1718157765836,20.44,146.8,146.72,0.51]
[1718157766035,25.4812,146.79,146.72,0.51]
[1718157766264,2.5211,146.76,146.72,0.51]
[1718157766767,2.5213,146.75,146.72,0.51]
[1718157767457,2.5216,146.73,146.72,0.51]
[1718157767657,20.44,146.78,146.72,0.68]
[1718157767658,25.4817,146.78,146.72,0.68]
[1718157767878,2.521,146.77,146.72,3.0318]
[1718157769071,25.9408,146.78,146.73,2.5215]
[1718157769256,25.9408,146.78,146.72,0.51]
[1718157769257,2.5205,146.8,146.75,2.6912]
[1718157769453,5.0403,146.82,146.77,2.6908]
[1718157769454,2.52,146.82,146.77,2.6908]
[1718157769667,2.5206,146.79,146.76,0.51]
[1718157770366,2.5205,146.8,146.76,0.51]
[1718157770561,2.5203,146.81,146.77,0.17]
[1718157770770,2.5201,146.82,146.77,2.6909]
[1718157770962,15.1165,146.86,146.78,0.17]
[1718157771149,2.5197,146.84,146.79,2.6905]
[1718157771445,20.44,146.85,146.79,0.17]
[1718157771649,2.5204,146.8,146.79,0.17]
[1718157771845,20.44,146.85,146.79,0.17]
[1718157772071,2.5201,146.82,146.79,0.17]
[1718157772558,2.5199,146.83,146.79,0.17]
[1718157772954,5.0395,146.84,146.79,0.17]
[1718157773161,2.5204,146.81,146.79,0.17]
[1718157773555,2.5201,146.82,146.79,0.17]
[1718157773756,2.52,146.83,146.79,0.51]
[1718157775375,2.48604469,146.82,146.79,0.51]
[1718157776963,2.5202,146.81,146.79,0.51]
[1718157777167,20.44,146.84,146.75,15.4482]
[1718157777476,5.04,146.83,146.75,15.4482]
[1718157777661,2.5204,146.81,146.76,2.5211]
[1718157777858,2.5204,146.8,146.75,17.9694]
[1718157778057,2.5203,146.81,146.76,2.5211]
[1718157778579,2.5203,146.81,146.77,0.68]
[1718157778877,2.5204,146.8,146.77,0.68]
[1718157782189,10.0796,146.84,146.79,2.6904]
[1718157782190,2.5198,146.84,146.79,2.6904]
[1718157782489,2.5198,146.84,146.81,0.17]
[1718157783059,5.0389,146.86,146.81,0.17]
[1718157783393,20.44,146.89,146.81,0.17]
[1718157783572,2.52,146.82,146.81,0.17]
[1718157784801,7.5587,146.85,146.81,6.7748]
[1718157784802,2.5196,146.85,146.81,6.7748]
[1718157784970,7.5579,146.87,146.83,0.17]
[1718157785171,2.5197,146.84,146.83,0.17]
[1718157785773,2.5199,146.83,146.82,0.51]
[1718157785986,2.5199,146.83,146.79,8.7186]
[1718157786180,2.5199,146.83,146.82,0.17]
[1718157786379,22.6793,146.83,146.76,6.0281]
[1718157786583,2.5207,146.79,146.76,6.0281]
[1718157786976,2.5205,146.8,146.76,6.0281]
[1718157787193,2.5206,146.79,146.76,6.0281]
[1718157787576,5.0403,146.82,146.76,6.0281]
[1718157787577,2.5205,146.8,146.76,6.0281]
[1718157787797,2.5207,146.79,146.75,15.4482]
[1718157788299,2.5207,146.78,146.75,15.4482]
[1718157788877,2.5206,146.79,146.76,0.17]
[1718157789084,2.5206,146.79,146.76,0.68]
[1718157789286,2.521,146.77,146.72,25.1267]
[1718157789469,2.5209,146.78,146.73,2.5215]
[1718157789688,2.5209,146.78,146.73,8.5337]
[1718157790493,2.5205,146.8,146.76,0.17]
[1718157790677,2.5205,146.8,146.76,0.51]
[1718157790994,2.5206,146.79,146.76,0.51]
[1718157791204,2.5209,146.77,146.76,0.51]
[1718157791491,20.44,146.8,146.74,0.17]
[1718157791693,20.44,146.8,146.69,0.8279763]
[1718157791694,34.3213,146.7,146.69,0.8279763]
[1718157791909,34.3213,146.7,146.56,10.098]
[1718157791910,2.5235,146.62,146.56,2.5244]
[1718157792096,25.4867,146.63,146.55,0.8279763]
[1718157792273,2.524,146.6,146.55,0.8279763]
[1718157792473,2.5235,146.62,146.55,0.8279763]
[1718157792882,20.44,146.65,146.55,0.8279763]
[1718157792883,2.5237,146.61,146.55,0.8279763]
[1718157793273,2.5238,146.6,146.55,0.8279763]
[1718157793594,2.5236,146.62,146.55,6.9771763]
[1718157793801,2.5237,146.61,146.55,6.9771763]
[1718157794284,2.5238,146.6,146.55,6.9771763]
[1718157794488,2.5237,146.61,146.55,6.9771763]
[1718157795581,2.5237,146.61,146.56,0.34]
[1718157795786,2.5237,146.61,146.56,6.9293]
[1718157796177,2.5235,146.62,146.56,6.9293]
[1718157796704,2.5235,146.62,146.57,0.34]
[1718157796912,2.5235,146.62,146.58,0.51]
[1718157797286,2.5233,146.64,146.59,0.34]
[1718157797495,2.5233,146.64,146.6,0.34]
[1718157799603,20.44,146.67,146.6,0.34]
[1718157799604,2.5233,146.63,146.6,0.34]
[1718157800197,2.5231,146.65,146.61,0.17]
[1718157800401,2.5228,146.66,146.61,0.34]
[1718157800719,2.523,146.65,146.63,0.17]
[1718157801534,5.0452,146.68,146.63,0.17]
[1718157801535,2.5225,146.68,146.63,0.34]
[1718157801811,269.9645,146.75,146.65,6.7123]
[1718157802026,5.0429,146.75,146.67,0.17]
[1718157802193,2.5217,146.73,146.67,32.6926]
[1718157802390,10.0862,146.74,146.67,30.17]
[1718157802596,105.57476152,146.78,146.67,30.17]
[1718157802597,2.5224,146.68,146.67,30.17]
[1718157802822,2.5224,146.68,146.67,30.68]
[1718157803505,2.5218,146.72,146.68,6.1834]
[1718157803718,2.5218,146.72,146.69,0.51]